[Event "Cracovia Festival-A 2023"]
[Site "Krakow"]
[Date "2023.12.28"]
[Round "2.37"]
[White "Turski, Bartlomiej"]
[Black "Szczurek, Krzysztof"]
[Result "1/2-1/2"]
[ECO "B90"]
[WhiteElo "2380"]
[BlackElo "2175"]
[Annotator "ChessBase"]
[PlyCount "120"]
[EventDate "2023.12.24"]
[EventType "swiss"]
[EventCountry "POL"]
[SourceTitle "playchess.com"]
[Source "ChessBase"]
[SourceQuality "1"]
[TimeControl "40/5400+30:1800+30"]

1. e4 {[%emt 0:00:11]} c5 {[%emt 0:00:05]} 2. Nf3 {[%emt 0:00:06]} d6 {[%emt 0:00:04]} 3. d4 {[%emt 0:00:04]} cxd4 {[%emt 0:00:03]} 4. Nxd4 {[%emt 0:00:04]} Nf6 {[%emt 0:00:06]} 5. Nc3 {[%emt 0:00:05]} a6 {[%emt 0:00:04]} 6. Rg1 {[%emt 0:00:07]} e5 {[%emt 0:02:12]} 7. Nb3 {[%emt 0:00:06]} Be6 {[%emt 0:00:21]} 8. g4 {[%emt 0:00:13]} d5 {[%emt 0:00:49]} 9. exd5 {[%emt 0:00:08]} Nxd5 {[%emt 0:00:06]} 10. Nxd5 {[%emt 0:00:19]} Bxd5 {[%emt 0:01:28]} 11. Rg3 {[%emt 0:00:06]} Be6 {[%emt 0:18:25]} 12. Qxd8+ {[%emt 0:02:03]} Kxd8 {[%emt 0:00:05]} 13. Bd2 {[%emt 0:00:08]} Nc6 {[%emt 0:02:00]} 14. Na5 {[%emt 0:01:31]} Nd4 {[%emt 0:06:43]} 15. O-O-O {[%emt 0:17:30]} Kc7 {[%emt 0:05:06]} 16. Rc3+ {[%emt 0:40:17]} Kb8 {[%emt 0:04:05]} 17. Bf4 {[%emt 0:03:27]} exf4 {[%emt 0:05:02]} 18. Rxd4 {[%emt 0:00:09]} Be7 {[%emt 0:06:51]} 19. Rcd3 {[%emt 0:07:57]} Kc7 {[%emt 0:05:01]} 20. Bg2 {[%emt 0:03:11]} Rad8 {[%emt 0:10:00]} 21. Rc3+ {[%emt 0:07:30]} Kb6 {[%emt 0:00:36]} 22. Rxd8 {[%emt 0:01:48]} Rxd8 {[%emt 0:00:06]} 23. Nxb7 {[%emt 0:02:38]} f3 {[%emt 0:03:03]} 24. Bxf3 {[%emt 0:01:00]} Bg5+ {[%emt 0:00:09]} 25. Kb1 {[%emt 0:00:02]} Rd2 {[%emt 0:00:28]} 26. Rc6+ {[%emt 0:06:17]} Ka7 {[%emt 0:02:20]} 27. Nc5 {[%emt 0:02:42]} Bd5 {[%emt 0:08:49]} 28. Rxa6+ {[%emt 0:00:31]} Kb8 {[%emt 0:00:06]} 29. Nd7+ {[%emt 0:02:26]} Kc7 {[%emt 0:00:24]} 30. Ra7+ {[%emt 0:01:01]} Kd8 {[%emt 0:01:51]} 31. Ne5 {[%emt 0:00:20]} Bxf3 {[%emt 0:00:08]} 32. a4 {[%emt 0:00:55]} Bd5 {[%emt 0:01:35]} 33. c4 {[%emt 0:01:17]} Be4+ {[%emt 0:00:37]} 34. Ka2 {[%emt 0:00:27]} Bf6 {[%emt 0:00:52]} 35. f4 {[%emt 0:00:41]} Bxe5 {[%emt 0:04:16]} 36. fxe5 {[%emt 0:00:01]} Rd7 {[%emt 0:00:08]} 37. Rxd7+ {[%emt 0:01:11]} Kxd7 {[%emt 0:00:06]} 38. b4 {[%emt 0:00:02]} Ke6 {[%emt 0:01:33]} 39. Kb3 {[%emt 0:00:46]} Kxe5 {[%emt 0:00:17]} 40. b5 {[%emt 0:00:00]} Kd6 {[%emt 0:00:00]} 41. Kb4 {[%emt 0:00:53]} h5 {[%emt 0:21:07]} 42. g5 {[%emt 0:00:52]} f5 {[%emt 0:04:40]} 43. gxf6 {[%emt 0:00:43]} gxf6 {[%emt 0:00:05]} 44. c5+ {[%emt 0:00:37]} Kc7 {[%emt 0:00:14]} 45. Kc3 {[%emt 0:13:09]} f5 {[%emt 0:00:42]} 46. Kd4 {[%emt 0:00:22]} Bc2 {[%emt 0:03:11]} 47. Ke5 {[%emt 0:06:42]} Kb7 {[%emt 0:09:23]} 48. a5 {[%emt 0:02:33]} Bd3 {[%emt 0:00:20]} 49. h4 {[%emt 0:01:10]} Bxb5 {[%emt 0:00:36]} 50. Kxf5 {[%emt 0:00:05]} Bd7+ {[%emt 0:03:27]} 51. Kg6 {[%emt 0:00:19]} Bg4 {[%emt 0:00:08]} 52. Kg5 {[%emt 0:00:05]} Kc7 {[%emt 0:01:28]} 53. a6 {[%emt 0:00:32]} Kc6 {[%emt 0:00:12]} 54. Kh6 {[%emt 0:00:07]} Bf3 {[%emt 0:00:17]} 55. Kg5 {[%emt 0:00:18]} Kc7 {[%emt 0:00:23]} 56. Kh6 {[%emt 0:00:33]} Kc6 {[%emt 0:00:39]} 57. Kg5 {[%emt 0:00:06]} Kxc5 {[%emt 0:00:12]} 58. a7 {[%emt 0:00:04]} Kb6 {[%emt 0:00:09]} 59. a8=B {[%emt 0:00:09]} Bxa8 {[%emt 0:00:10]} 60. Kxh5 {[%emt 0:00:06]} Bf3+ {[%emt 0:00:07]} 1/2-1/2

[Event "Cracovia Festival-A 2023"]
[Site "Krakow"]
[Date "2023.12.28"]
[Round "2.38"]
[White "Loftgaard, Mikkel Vinh"]
[Black "Vasynda, Oleksandr"]
[Result "0-1"]
[ECO "B31"]
[WhiteElo "2322"]
[BlackElo "2153"]
[Annotator "ChessBase"]
[PlyCount "76"]
[EventDate "2023.12.24"]
[EventType "swiss"]
[EventCountry "POL"]
[SourceTitle "playchess.com"]
[Source "ChessBase"]
[SourceQuality "1"]
[TimeControl "40/5400+30:1800+30"]

1. e4 {[%emt 0:00:11]} c5 {[%emt 0:00:07]} 2. Nf3 {[%emt 0:00:12]} Nc6 {[%emt 0:00:08]} 3. Bb5 {[%emt 0:00:54]} g6 {[%emt 0:00:11]} 4. O-O {[%emt 0:00:10]} Bg7 {[%emt 0:00:14]} 5. Re1 {[%emt 0:00:17]} e5 {[%emt 0:00:09]} 6. c3 {[%emt 0:00:06]} Nge7 {[%emt 0:00:38]} 7. d4 {[%emt 0:00:26]} cxd4 {[%emt 0:00:15]} 8. cxd4 {[%emt 0:00:02]} exd4 {[%emt 0:00:37]} 9. Bf4 {[%emt 0:04:24]} a6 {[%emt 0:05:29]} 10. Bc4 {[%emt 0:00:37]} d6 {[%emt 0:03:08]} 11. Nbd2 {[%emt 0:03:49]} O-O {[%emt 0:02:02]} 12. Bb3 {[%emt 0:11:56]} Ne5 {[%emt 0:04:10]} 13. Qe2 {[%emt 0:13:02]} N7c6 {[%emt 0:04:11]} 14. h3 {[%emt 0:00:20]} Kh8 {[%emt 0:10:12]} 15. Bd5 {[%emt 0:06:21]} Nb4 {[%emt 0:03:20]} 16. Rf1 {[%emt 0:07:15]} Nxd5 {[%emt 0:07:40]} 17. exd5 {[%emt 0:00:05]} Bf5 {[%emt 0:00:05]} 18. Nxe5 {[%emt 0:14:02]} dxe5 {[%emt 0:00:19]} 19. Bxe5 {[%emt 0:00:07]} Qxd5 {[%emt 0:00:14]} 20. Bxg7+ {[%emt 0:01:37]} Kxg7 {[%emt 0:00:02]} 21. Rfd1 {[%emt 0:01:08]} Rfe8 {[%emt 0:04:20]} 22. Qf3 {[%emt 0:00:25]} Rad8 {[%emt 0:01:34]} 23. Qxd5 {[%emt 0:05:10]} Rxd5 {[%emt 0:00:03]} 24. Nb3 {[%emt 0:00:01]} Bc2 {[%emt 0:01:02]} 25. Rd2 {[%emt 0:00:02]} Bxb3 {[%emt 0:00:42]} 26. axb3 {[%emt 0:00:01]} Rb5 {[%emt 0:01:18]} 27. Rxd4 {[%emt 0:02:15]} Re2 {[%emt 0:00:33]} 28. Rc1 {[%emt 0:00:38]} Rxb2 {[%emt 0:00:29]} 29. Rc7 {[%emt 0:01:09]} R2xb3 {[%emt 0:00:13]} 30. Rdd7 {[%emt 0:00:09]} Rb1+ {[%emt 0:00:10]} 31. Kh2 {[%emt 0:00:12]} Rf5 {[%emt 0:00:04]} 32. f3 {[%emt 0:00:22]} b5 {[%emt 0:00:44]} 33. Rc6 {[%emt 0:00:28]} a5 {[%emt 0:00:18]} 34. Ra7 {[%emt 0:00:14]} b4 {[%emt 0:00:53]} 35. Rca6 {[%emt 0:01:30]} b3 {[%emt 0:00:27]} 36. Rxa5 {[%emt 0:00:28]} b2 {[%emt 0:00:07]} 37. Rxf5 {[%emt 0:00:26]} Rh1+ {[%emt 0:00:09]} 38. Kg3 {[%emt 0:00:04]} gxf5 {[%emt 0:00:07]} 0-1

[Event "Cracovia Festival-A 2023"]
[Site "Krakow"]
[Date "2023.12.28"]
[Round "2.39"]
[White "Ongut, Tamas Gunes"]
[Black "Hnatyshyn, Anastasiia"]
[Result "1/2-1/2"]
[ECO "B13"]
[WhiteElo "2313"]
[BlackElo "2152"]
[Annotator "ChessBase"]
[PlyCount "73"]
[EventDate "2023.12.24"]
[EventType "swiss"]
[EventCountry "POL"]
[SourceTitle "playchess.com"]
[Source "ChessBase"]
[SourceQuality "1"]
[TimeControl "40/5400+30:1800+30"]

1. e4 {[%emt 0:02:01]} c6 {[%emt 0:00:05]} 2. d4 {[%emt 0:00:17]} d5 {[%emt 0:00:07]} 3. exd5 {[%emt 0:00:28]} cxd5 {[%emt 0:00:04]} 4. Bd3 {[%emt 0:00:18]} Nc6 {[%emt 0:00:14]} 5. c3 {[%emt 0:00:07]} Nf6 {[%emt 0:00:11]} 6. h3 {[%emt 0:00:39]} Qc7 {[%emt 0:01:19]} 7. Nf3 {[%emt 0:00:09]} g6 {[%emt 0:01:23]} 8. O-O {[%emt 0:00:15]} Bg7 {[%emt 0:00:09]} 9. Re1 {[%emt 0:00:27]} O-O {[%emt 0:00:31]} 10. a4 {[%emt 0:07:02]} Bf5 {[%emt 0:04:50]} 11. Ne5 {[%emt 0:03:50]} Nxe5 {[%emt 0:08:54]} 12. Bxf5 {[%emt 0:00:15]} gxf5 {[%emt 0:02:17]} 13. dxe5 {[%emt 0:03:54]} Ne4 {[%emt 0:00:55]} 14. f3 {[%emt 0:02:49]} Nc5 {[%emt 0:02:33]} 15. Qxd5 {[%emt 0:05:36]} Rfd8 {[%emt 0:02:22]} 16. Qc4 {[%emt 0:00:10]} Bxe5 {[%emt 0:03:05]} 17. Na3 {[%emt 0:05:35]} Bg3 {[%emt 0:12:00]} 18. Nb5 {[%emt 0:04:48]} Qd7 {[%emt 0:00:44]} 19. Rf1 {[%emt 0:09:26]} Ne6 {[%emt 0:03:52]} 20. Be3 {[%emt 0:07:06]} Rac8 {[%emt 0:10:54]} 21. Qe2 {[%emt 0:00:51]} a6 {[%emt 0:01:28]} 22. Rfd1 {[%emt 0:02:34]} Qe8 {[%emt 0:00:41]} 23. Nd4 {[%emt 0:01:56]} Nxd4 {[%emt 0:03:16]} 24. Bxd4 {[%emt 0:00:10]} e5 {[%emt 0:01:44]} 25. Bf2 {[%emt 0:00:37]} Bf4 {[%emt 0:02:48]} 26. Rxd8 {[%emt 0:03:13]} Rxd8 {[%emt 0:00:47]} 27. Rd1 {[%emt 0:00:32]} Rc8 {[%emt 0:04:01]} 28. g3 {[%emt 0:05:23]} Bg5 {[%emt 0:03:29]} 29. Rd5 {[%emt 0:05:56]} Bf6 {[%emt 0:02:43]} 30. Qd3 {[%emt 0:02:12]} e4 {[%emt 0:01:49]} 31. fxe4 {[%emt 0:02:40]} fxe4 {[%emt 0:00:34]} 32. Qd2 {[%emt 0:02:58]} Qe6 {[%emt 0:06:35]} 33. Rd6 {[%emt 0:00:36]} Qf5 {[%emt 0:03:01]} 34. g4 {[%emt 0:06:00]} Qf3 {[%emt 0:02:19]} 35. Qe3 {[%emt 0:00:12]} Kg7 {[%emt 0:06:45]} 36. Qxf3 {[%emt 0:04:45]} exf3 {[%emt 0:00:04]} 37. Rd5 {[%emt 0:09:13]} 1/2-1/2

[Event "Cracovia Festival-A 2023"]
[Site "Krakow"]
[Date "2023.12.28"]
[Round "2.40"]
[White "Pniaczek, Marek"]
[Black "Lukasiewicz, Krzysztof"]
[Result "0-1"]
[ECO "B11"]
[WhiteElo "2135"]
[BlackElo "2290"]
[Annotator "ChessBase"]
[PlyCount "88"]
[EventDate "2023.12.24"]
[EventType "swiss"]
[EventCountry "POL"]
[SourceTitle "playchess.com"]
[Source "ChessBase"]
[SourceQuality "1"]
[TimeControl "40/5400+30:1800+30"]

1. e4 {[%emt 0:01:33]} c6 {[%emt 0:00:02]} 2. Nf3 {[%emt 0:00:20]} d5 {[%emt 0:00:02]} 3. Nc3 {[%emt 0:00:04]} Bg4 {[%emt 0:00:03]} 4. h3 {[%emt 0:00:08]} Bxf3 {[%emt 0:00:04]} 5. Qxf3 {[%emt 0:00:05]} e6 {[%emt 0:00:02]} 6. Be2 {[%emt 0:00:20]} Bc5 {[%emt 0:05:47]} 7. Qg3 {[%emt 0:01:27]} Bd4 {[%emt 0:01:13]} 8. exd5 {[%emt 0:00:20]} exd5 {[%emt 0:00:05]} 9. O-O {[%emt 0:00:18]} Ne7 {[%emt 0:01:22]} 10. Bd1 {[%emt 0:02:33]} O-O {[%emt 0:08:44]} 11. Ne2 {[%emt 0:01:15]} Bb6 {[%emt 0:03:16]} 12. d4 {[%emt 0:02:07]} Nd7 {[%emt 0:01:18]} 13. c3 {[%emt 0:03:59]} Re8 {[%emt 0:04:37]} 14. Bc2 {[%emt 0:02:31]} Ng6 {[%emt 0:01:32]} 15. Qf3 {[%emt 0:15:30]} Qf6 {[%emt 0:04:52]} 16. Qxf6 {[%emt 0:07:06]} Nxf6 {[%emt 0:00:54]} 17. Be3 {[%emt 0:01:16]} Bc7 {[%emt 0:00:52]} 18. Rae1 {[%emt 0:02:22]} Re6 {[%emt 0:07:31]} 19. g3 {[%emt 0:13:30]} Rae8 {[%emt 0:03:02]} 20. Kg2 {[%emt 0:00:05]} Ne4 {[%emt 0:00:49]} 21. Bxe4 {[%emt 0:11:04]} Rxe4 {[%emt 0:02:12]} 22. Nc1 {[%emt 0:01:12]} f5 {[%emt 0:09:03]} 23. Nd3 {[%emt 0:03:14]} Bd6 {[%emt 0:08:23]} 24. Bd2 {[%emt 0:01:14]} Kf7 {[%emt 0:04:21]} 25. f4 {[%emt 0:00:52]} Re2+ {[%emt 0:01:06]} 26. Rxe2 {[%emt 0:00:10]} Rxe2+ {[%emt 0:00:05]} 27. Rf2 {[%emt 0:00:04]} Rxf2+ {[%emt 0:01:15]} 28. Kxf2 {[%emt 0:00:40]} Ne7 {[%emt 0:00:21]} 29. Ne5+ {[%emt 0:03:23]} Ke6 {[%emt 0:00:38]} 30. Kf3 {[%emt 0:00:54]} Ng8 {[%emt 0:00:51]} 31. g4 {[%emt 0:00:29]} Nf6 {[%emt 0:00:06]} 32. Nd3 {[%emt 0:01:09]} g6 {[%emt 0:05:57]} 33. Be1 {[%emt 0:05:42]} fxg4+ {[%emt 0:08:49]} 34. hxg4 {[%emt 0:00:09]} h5 {[%emt 0:00:03]} 35. gxh5 {[%emt 0:01:33]} gxh5 {[%emt 0:00:19]} 36. Bh4 {[%emt 0:00:47]} Ne4 {[%emt 0:00:20]} 37. Be1 {[%emt 0:01:03]} Kf5 {[%emt 0:00:33]} 38. Bh4 {[%emt 0:01:09]} Nd2+ {[%emt 0:00:15]} 39. Ke2 {[%emt 0:01:18]} Kg4 {[%emt 0:07:29]} 40. Bg5 {[%emt 0:00:00]} Ne4 {[%emt 0:00:00]} 41. Bh6 {[%emt 0:06:58]} h4 {[%emt 0:06:51]} 42. Kf1 {[%emt 0:01:47]} Kg3 {[%emt 0:03:56]} 43. Kg1 {[%emt 0:01:08]} h3 {[%emt 0:04:56]} 44. f5 {[%emt 0:00:51]} Kg4 {[%emt 0:00:21]} 0-1

[Event "Cracovia Festival-A 2023"]
[Site "Krakow"]
[Date "2023.12.28"]
[Round "2.41"]
[White "Katsanis, Vasileios Dim"]
[Black "Nemsadze, Daviti"]
[Result "0-1"]
[ECO "E32"]
[WhiteElo "2133"]
[BlackElo "2253"]
[Annotator "ChessBase"]
[PlyCount "100"]
[EventDate "2023.12.24"]
[EventType "swiss"]
[EventCountry "POL"]
[SourceTitle "playchess.com"]
[Source "ChessBase"]
[SourceQuality "1"]
[TimeControl "40/5400+30:1800+30"]

1. d4 {[%emt 0:00:04]} Nf6 {[%emt 0:00:09]} 2. c4 {[%emt 0:00:06]} e6 {[%emt 0:00:03]} 3. Nc3 {[%emt 0:00:02]} Bb4 {[%emt 0:00:04]} 4. Qc2 {[%emt 0:00:06]} O-O {[%emt 0:00:08]} 5. a3 {[%emt 0:00:03]} Bxc3+ {[%emt 0:00:04]} 6. Qxc3 {[%emt 0:00:03]} b6 {[%emt 0:00:04]} 7. Bg5 {[%emt 0:00:23]} Bb7 {[%emt 0:00:29]} 8. e3 {[%emt 0:00:42]} h6 {[%emt 0:08:38]} 9. Bh4 {[%emt 0:00:06]} c5 {[%emt 0:06:55]} 10. dxc5 {[%emt 0:02:39]} bxc5 {[%emt 0:00:15]} 11. f3 {[%emt 0:03:48]} Nc6 {[%emt 0:08:19]} 12. Bd3 {[%emt 0:12:25]} Ba6 {[%emt 0:35:01]} 13. Ne2 {[%emt 0:30:14]} d6 {[%emt 0:19:17]} 14. b4 {[%emt 0:15:38]} Ne5 {[%emt 0:03:51]} 15. b5 {[%emt 0:09:05]} Bb7 {[%emt 0:04:55]} 16. O-O {[%emt 0:06:39]} Nxd3 {[%emt 0:02:49]} 17. Qxd3 {[%emt 0:00:05]} d5 {[%emt 0:01:20]} 18. Rfd1 {[%emt 0:02:58]} Qe7 {[%emt 0:01:15]} 19. a4 {[%emt 0:00:58]} Rfd8 {[%emt 0:01:15]} 20. Qc3 {[%emt 0:01:28]} Rac8 {[%emt 0:00:56]} 21. Rac1 {[%emt 0:00:57]} g5 {[%emt 0:00:49]} 22. Bf2 {[%emt 0:01:14]} e5 {[%emt 0:01:06]} 23. cxd5 {[%emt 0:03:52]} Nxd5 {[%emt 0:00:02]} 24. Qb3 {[%emt 0:01:08]} e4 {[%emt 0:00:30]} 25. Ng3 {[%emt 0:01:24]} exf3 {[%emt 0:01:58]} 26. e4 {[%emt 0:01:49]} Nf4 {[%emt 0:01:01]} 27. Qxf3 {[%emt 0:00:51]} Rxd1+ {[%emt 0:01:09]} 28. Rxd1 {[%emt 0:00:04]} Qe6 {[%emt 0:01:13]} 29. h4 {[%emt 0:03:45]} a6 {[%emt 0:00:14]} 30. bxa6 {[%emt 0:00:53]} Bxa6 {[%emt 0:00:10]} 31. hxg5 {[%emt 0:00:13]} hxg5 {[%emt 0:00:01]} 32. Rc1 {[%emt 0:00:06]} c4 {[%emt 0:01:26]} 33. Bd4 {[%emt 0:00:21]} Bb7 {[%emt 0:00:28]} 34. Qc3 {[%emt 0:01:03]} Rd8 {[%emt 0:00:54]} 35. Qxc4 {[%emt 0:02:03]} Qg4 {[%emt 0:00:38]} 36. Bf2 {[%emt 0:00:11]} Rc8 {[%emt 0:00:04]} 37. Qf1 {[%emt 0:01:01]} Rxc1 {[%emt 0:00:01]} 38. Qxc1 {[%emt 0:00:02]} Qxg3 {[%emt 0:00:02]} 39. Bxg3 {[%emt 0:00:08]} Ne2+ {[%emt 0:00:02]} 40. Kf2 {[%emt 0:00:00]} Nxc1 {[%emt 0:00:00]} 41. Ke3 {[%emt 0:00:14]} Nb3 {[%emt 0:00:35]} 42. Bd6 {[%emt 0:00:42]} Kg7 {[%emt 0:00:26]} 43. Bb4 {[%emt 0:00:26]} Kf6 {[%emt 0:01:48]} 44. g3 {[%emt 0:02:00]} Ke5 {[%emt 0:00:59]} 45. Bc3+ {[%emt 0:00:13]} Ke6 {[%emt 0:00:54]} 46. Bb4 {[%emt 0:00:18]} Ba6 {[%emt 0:00:05]} 47. a5 {[%emt 0:00:32]} Nc1 {[%emt 0:00:37]} 48. Kf3 {[%emt 0:01:36]} Nd3 {[%emt 0:00:06]} 49. Bc3 {[%emt 0:00:04]} Bb7 {[%emt 0:01:38]} 50. Kg4 {[%emt 0:01:57]} Nf2+ {[%emt 0:00:09]} 0-1

[Event "Cracovia Festival-A 2023"]
[Site "Krakow"]
[Date "2023.12.28"]
[Round "2.42"]
[White "Piekielny, Pawel"]
[Black "Kazantzoglou, Stefanos"]
[Result "1-0"]
[ECO "C78"]
[WhiteElo "2250"]
[BlackElo "2152"]
[Annotator "ChessBase"]
[PlyCount "79"]
[EventDate "2023.12.24"]
[EventType "swiss"]
[EventCountry "POL"]
[SourceTitle "playchess.com"]
[Source "ChessBase"]
[SourceQuality "1"]
[TimeControl "40/5400+30:1800+30"]

1. e4 {[%emt 0:00:02]} e5 {[%emt 0:00:05]} 2. Nf3 {[%emt 0:00:06]} Nc6 {[%emt 0:00:03]} 3. Bb5 {[%emt 0:00:06]} a6 {[%emt 0:00:06]} 4. Ba4 {[%emt 0:00:08]} Nf6 {[%emt 0:00:15]} 5. O-O {[%emt 0:00:15]} b5 {[%emt 0:00:12]} 6. Bb3 {[%emt 0:00:06]} Bc5 {[%emt 0:00:04]} 7. Nc3 {[%emt 0:00:17]} O-O {[%emt 0:00:24]} 8. d3 {[%emt 0:01:21]} h6 {[%emt 0:00:25]} 9. Nd5 {[%emt 0:00:48]} d6 {[%emt 0:00:26]} 10. c3 {[%emt 0:00:44]} Rb8 {[%emt 0:00:27]} 11. h3 {[%emt 0:06:43]} Nxd5 {[%emt 0:10:50]} 12. Bxd5 {[%emt 0:01:29]} Ne7 {[%emt 0:00:15]} 13. Bb3 {[%emt 0:00:05]} Bb6 {[%emt 0:02:36]} 14. Nh4 {[%emt 0:06:01]} Kh7 {[%emt 0:09:23]} 15. Qh5 {[%emt 0:02:51]} Ng8 {[%emt 0:01:49]} 16. Be3 {[%emt 0:11:56]} Bxe3 {[%emt 0:06:51]} 17. fxe3 {[%emt 0:00:05]} Qg5 {[%emt 0:00:07]} 18. Bxf7 {[%emt 0:09:21]} Rxf7 {[%emt 0:09:22]} 19. Qxf7 {[%emt 0:00:22]} Qxh4 {[%emt 0:00:17]} 20. Qxc7 {[%emt 0:02:16]} Bxh3 {[%emt 0:04:47]} 21. Rf3 {[%emt 0:08:41]} Rc8 {[%emt 0:04:20]} 22. Qxd6 {[%emt 0:00:26]} Bg4 {[%emt 0:00:09]} 23. Qxe5 {[%emt 0:03:28]} Bxf3 {[%emt 0:05:11]} 24. Qf5+ {[%emt 0:00:22]} Kh8 {[%emt 0:00:27]} 25. Qxc8 {[%emt 0:01:34]} Qg5 {[%emt 0:03:52]} 26. Qh3 {[%emt 0:00:29]} Be2 {[%emt 0:00:21]} 27. d4 {[%emt 0:02:31]} Nf6 {[%emt 0:01:13]} 28. e5 {[%emt 0:04:22]} Bg4 {[%emt 0:10:34]} 29. Qg3 {[%emt 0:02:07]} Nh5 {[%emt 0:01:19]} 30. Qf2 {[%emt 0:01:16]} Bf5 {[%emt 0:00:16]} 31. Kh2 {[%emt 0:03:16]} g6 {[%emt 0:04:24]} 32. a4 {[%emt 0:00:43]} bxa4 {[%emt 0:01:27]} 33. Rxa4 {[%emt 0:10:05]} Nf6 {[%emt 0:03:45]} 34. exf6 {[%emt 0:01:06]} Qh5+ {[%emt 0:00:06]} 35. Kg1 {[%emt 0:00:06]} Qd1+ {[%emt 0:00:08]} 36. Qf1 {[%emt 0:00:04]} Qd2 {[%emt 0:04:59]} 37. Qf4 {[%emt 0:04:38]} Qd1+ {[%emt 0:01:53]} 38. Kf2 {[%emt 0:02:29]} Qc2+ {[%emt 0:00:37]} 39. Kg3 {[%emt 0:00:44]} g5 {[%emt 0:00:35]} 40. Qc7 {[%emt 0:00:47]} 1-0

[Event "Cracovia Festival-A 2023"]
[Site "Krakow"]
[Date "2023.12.28"]
[Round "2.43"]
[White "Babiarz, Arkadiusz"]
[Black "Ramirez Garcia, Jorge Alberto"]
[Result "1/2-1/2"]
[ECO "B10"]
[WhiteElo "2129"]
[BlackElo "2249"]
[Annotator "ChessBase"]
[PlyCount "80"]
[EventDate "2023.12.24"]
[EventType "swiss"]
[EventCountry "POL"]
[SourceTitle "playchess.com"]
[Source "ChessBase"]
[SourceQuality "1"]
[TimeControl "40/5400+30:1800+30"]

1. e4 {[%emt 0:00:30]} c6 {[%emt 0:01:31]} 2. Nf3 {[%emt 0:01:01]} d5 {[%emt 0:00:07]} 3. d3 {[%emt 0:00:04]} dxe4 {[%emt 0:00:05]} 4. dxe4 {[%emt 0:00:03]} Qxd1+ {[%emt 0:00:06]} 5. Kxd1 {[%emt 0:00:04]} g6 {[%emt 0:00:07]} 6. Nbd2 {[%emt 0:03:43]} Bh6 {[%emt 0:00:32]} 7. Ne5 {[%emt 0:03:58]} Nf6 {[%emt 0:01:04]} 8. f3 {[%emt 0:00:12]} Be6 {[%emt 0:00:23]} 9. Bc4 {[%emt 0:21:52]} Nfd7 {[%emt 0:00:37]} 10. Nxd7 {[%emt 0:11:20]} Kxd7 {[%emt 0:00:32]} 11. Bxe6+ {[%emt 0:02:02]} Kxe6 {[%emt 0:00:09]} 12. Nb3 {[%emt 0:00:41]} Bxc1 {[%emt 0:00:15]} 13. Rxc1 {[%emt 0:00:25]} b6 {[%emt 0:05:11]} 14. Ke2 {[%emt 0:00:27]} c5 {[%emt 0:00:31]} 15. Rhd1 {[%emt 0:02:23]} Nc6 {[%emt 0:00:26]} 16. c3 {[%emt 0:00:30]} g5 {[%emt 0:05:03]} 17. Rd5 {[%emt 0:09:36]} Ne5 {[%emt 0:01:50]} 18. Rcd1 {[%emt 0:00:23]} h6 {[%emt 0:07:23]} 19. Nd2 {[%emt 0:02:39]} f5 {[%emt 0:03:12]} 20. Nf1 {[%emt 0:16:36]} fxe4 {[%emt 0:07:03]} 21. fxe4 {[%emt 0:00:05]} Rhf8 {[%emt 0:00:38]} 22. g3 {[%emt 0:11:09]} Ng4 {[%emt 0:02:25]} 23. Rf5 {[%emt 0:03:15]} Rad8 {[%emt 0:11:44]} 24. Rxd8 {[%emt 0:01:14]} Rxd8 {[%emt 0:01:55]} 25. h3 {[%emt 0:01:09]} Nf6 {[%emt 0:02:02]} 26. Rf3 {[%emt 0:02:21]} h5 {[%emt 0:17:19]} 27. Nd2 {[%emt 0:00:53]} g4 {[%emt 0:01:15]} 28. Rf1 {[%emt 0:02:42]} Ke5 {[%emt 0:12:04]} 29. Rf5+ {[%emt 0:00:08]} Ke6 {[%emt 0:00:12]} 30. Rf1 {[%emt 0:00:01]} Nd7 {[%emt 0:07:41]} 31. Rf5 {[%emt 0:01:22]} Rh8 {[%emt 0:00:44]} 32. h4 {[%emt 0:00:11]} Nf6 {[%emt 0:00:30]} 33. Rg5 {[%emt 0:01:26]} Rd8 {[%emt 0:00:40]} 34. Rg7 {[%emt 0:00:28]} Rf8 {[%emt 0:05:41]} 35. Ke3 {[%emt 0:00:49]} Nd7 {[%emt 0:00:59]} 36. Rg5 {[%emt 0:00:34]} Nf6 {[%emt 0:02:01]} 37. Rf5 {[%emt 0:01:23]} Rd8 {[%emt 0:00:41]} 38. Rf2 {[%emt 0:00:59]} Rd7 {[%emt 0:01:04]} 39. Rf4 {[%emt 0:00:15]} Rd8 {[%emt 0:01:54]} 40. Rf2 {[%emt 0:00:14]} Rd7 {[%emt 0:00:00]} 1/2-1/2

[Event "Cracovia Festival-A 2023"]
[Site "Krakow"]
[Date "2023.12.28"]
[Round "2.44"]
[White "Panek, Bartosz"]
[Black "Aakash Sharadchandra, Dalvi"]
[Result "0-1"]
[ECO "B40"]
[WhiteElo "2232"]
[BlackElo "2130"]
[Annotator "ChessBase"]
[PlyCount "60"]
[EventDate "2023.12.24"]
[EventType "swiss"]
[EventCountry "POL"]
[SourceTitle "playchess.com"]
[Source "ChessBase"]
[SourceQuality "1"]
[TimeControl "40/5400+30:1800+30"]

1. e4 {[%emt 0:00:18]} c5 {[%emt 0:08:27]} 2. Nf3 {[%emt 0:00:06]} e6 {[%emt 0:00:09]} 3. c3 {[%emt 0:00:08]} Nf6 {[%emt 0:00:06]} 4. e5 {[%emt 0:00:04]} Nd5 {[%emt 0:00:08]} 5. a3 {[%emt 0:00:07]} d6 {[%emt 0:00:23]} 6. d4 {[%emt 0:00:14]} cxd4 {[%emt 0:00:13]} 7. c4 {[%emt 0:00:17]} Nc7 {[%emt 0:02:29]} 8. Bg5 {[%emt 0:33:25]} Be7 {[%emt 0:01:03]} 9. Bxe7 {[%emt 0:02:09]} Qxe7 {[%emt 0:00:13]} 10. exd6 {[%emt 0:02:10]} Qxd6 {[%emt 0:00:04]} 11. Qxd4 {[%emt 0:01:01]} Qxd4 {[%emt 0:00:21]} 12. Nxd4 {[%emt 0:00:06]} e5 {[%emt 0:00:23]} 13. Nf3 {[%emt 0:01:35]} Nc6 {[%emt 0:00:14]} 14. Nc3 {[%emt 0:02:59]} Bg4 {[%emt 0:01:18]} 15. Be2 {[%emt 0:01:26]} O-O-O {[%emt 0:01:52]} 16. O-O {[%emt 0:04:56]} f5 {[%emt 0:01:33]} 17. h3 {[%emt 0:08:55]} Bxf3 {[%emt 0:00:49]} 18. Bxf3 {[%emt 0:03:27]} e4 {[%emt 0:00:13]} 19. Bd1 {[%emt 0:00:56]} Rd2 {[%emt 0:10:24]} 20. b4 {[%emt 0:01:44]} Rhd8 {[%emt 0:00:13]} 21. Rc1 {[%emt 0:01:46]} R8d3 {[%emt 0:11:49]} 22. f3 {[%emt 0:12:05]} e3 {[%emt 0:05:18]} 23. Re1 {[%emt 0:07:43]} Nd4 {[%emt 0:02:38]} 24. Kf1 {[%emt 0:00:34]} Rf2+ {[%emt 0:12:19]} 25. Kg1 {[%emt 0:00:13]} f4 {[%emt 0:00:35]} 26. Ne4 {[%emt 0:05:28]} Rdd2 {[%emt 0:00:21]} 27. g3 {[%emt 0:05:33]} Rxd1 {[%emt 0:02:56]} 28. Nxf2 {[%emt 0:01:28]} Rxe1+ {[%emt 0:00:07]} 29. Rxe1 {[%emt 0:00:07]} Nxf3+ {[%emt 0:00:05]} 30. Kf1 {[%emt 0:00:47]} exf2 {[%emt 0:00:47]} 0-1